fUSD/lending_fUSD_20240414
["ID","MTS","AMOUNT","RATE_DAILY","PERIOD"]
[322579649,1713083387508,662.91,0.00019077,2]
[322579650,1713083387678,662.91,0.00019082,2]
[322579651,1713083388452,889.62,0.00018979,2]
[322579652,1713083390145,155.0,0.00019799,2]
[322579653,1713083390393,354.48328096,0.000198,2]
[322579654,1713083402821,269.50342144,0.000198,2]
[322579655,1713083405074,167.69861129,0.00019714,2]
[322579656,1713083411150,400.0,0.00018998,2]
[322579657,1713083411182,167.69861127,0.00019749,2]
[322579658,1713083411545,312.13,0.00018998,2]
[322579659,1713083411991,400.0,0.00026122,120]
[322579660,1713083412198,400.0,0.00028497,120]
[322579661,1713083413705,405.1994349,0.000198,2]
[322579662,1713083417091,167.69861127,0.00019784,2]
[322579663,1713083420043,279.823384,0.00019726,2]
[322579664,1713083420192,150.0,0.00018988,2]
[322579665,1713083421462,839.4558922,0.00019714,2]
[322579666,1713083422950,595.35,0.00018987,2]
[322579691,1713083431772,-3867.48223429,0.00019801,2]
[322579692,1713083431782,-160.34479944,0.00019814,2]
[322579693,1713083431791,-300.0,0.00019817,2]
[322579694,1713083431800,-394.9,0.00019832,2]
[322579695,1713083431810,-150.0,0.00019882,2]
[322579696,1713083431820,-300.0,0.00019882,2]
[322579697,1713083431829,-150.0,0.00019882,2]
[322579698,1713083431839,-8514.96690023,0.00019883,2]
[322579699,1713083431848,-31753.05062004,0.00019884,2]
[322579700,1713083431859,-222.54571022,0.00019884,2]
[322579701,1713083431868,-394.9,0.00019885,2]
[322579702,1713083431878,-7500.0,0.00019886,2]
[322579703,1713083431888,-151.97376136,0.000199,2]
[322579704,1713083431897,-394.9,0.00019937,2]
[322579705,1713083431907,-1967.23765179,0.00019939,2]
[322579706,1713083431917,-150.99,0.00019939,2]
[322579707,1713083431926,-669.0129911,0.00019944,2]
[322579708,1713083431936,-15681.88964078,0.00019945,2]
[322579709,1713083431948,-1105.79495962,0.00019945,2]
[322579710,1713083431960,-865.60030812,0.00019945,2]
[322579715,1713083432147,-594.75831664,0.00019945,2]
[322579717,1713083432159,-688.81808505,0.00019945,2]
[322579718,1713083434377,257.83754039,0.000198,2]
[322579722,1713083437584,-255.7749,0.00019883,2]
[322579723,1713083437595,-1136.01887852,0.00019945,2]
[322579724,1713083437610,-12993.54849839,0.00019945,2]
[322579725,1713083437619,-499.99,0.00019945,2]
[322579726,1713083437629,-999.99,0.00019945,2]
[322579727,1713083437639,-395.94,0.00019945,2]
[322579728,1713083437648,-6734.23,0.00019948,2]
[322579729,1713083437657,-203.5,0.00019969,2]
[322579730,1713083437667,-203.5,0.00019969,2]
[322579731,1713083437677,-203.5,0.00019969,2]
[322579732,1713083437687,-203.5,0.0001997,2]
[322579733,1713083437697,-203.5,0.0001997,2]
[322579734,1713083437706,-203.5,0.0001997,2]
[322579735,1713083437715,-405.1994349,0.00019978,2]
[322579736,1713083437724,-183.07,0.00019979,2]
[322579737,1713083437733,-150.99,0.00019979,2]
[322579738,1713083437742,-2500.0,0.00019979,2]
[322579739,1713083437751,-1000.0,0.00019979,2]
[322579740,1713083437761,-1305.42480343,0.00019979,2]
[322579741,1713083437770,-327.28708523,0.00019979,2]
[322579742,1713083437781,-235.25904702,0.00019979,2]
[322579743,1713083437790,-155.0,0.00019979,2]
[322579744,1713083437800,-324.47216229,0.00019979,2]
[322579745,1713083437810,-34667.67159276,0.00019979,2]
[322579746,1713083437860,-650010.36701943,0.00019979,2]
[322579747,1713083437869,-302.1251669,0.0001998,2]
[322579748,1713083437879,-166.80961494,0.0001998,2]
[322579749,1713083437888,-545529.04088973,0.0001998,2]
[322579750,1713083437897,-236.17328764,0.00019981,2]
[322579751,1713083437907,-1809.94498088,0.00019981,2]
[322579752,1713083437916,-155.00005905,0.00019981,2]
[322579753,1713083437925,-174.94832878,0.00019981,2]
[322579754,1713083437935,-2793.92994076,0.00019981,2]
[322579755,1713083437944,-919.89884875,0.00019981,2]
[322579756,1713083437953,-355.67165331,0.00019981,2]
[322579757,1713083437962,-296.04694555,0.00019982,2]
[322579758,1713083437972,-525.48395188,0.00019983,2]
[322579759,1713083437982,-266.01295252,0.00019983,2]
[322579760,1713083437991,-155.0,0.00019983,2]
[322579761,1713083438000,-319.89731461,0.00019983,2]
[322579762,1713083438009,-155.0,0.00019983,2]
[322579763,1713083438018,-194.10792266,0.00019983,2]
[322579765,1713083438029,-155.0,0.00019983,2]
[322579767,1713083438038,-200.0,0.00019983,2]
[322579769,1713083438046,-4701.3371527,0.00019983,2]
[322579771,1713083438056,-373.48145364,0.00019983,2]
[322579773,1713083438065,-215.19378776,0.00019983,2]
[322579775,1713083438075,-156.74573831,0.00019983,2]
[322579777,1713083438085,-201.64644472,0.00019983,2]
[322579778,1713083438094,-156.6905373,0.00019983,2]
[322579779,1713083438104,-155.62446409,0.00019983,2]
[322579780,1713083438115,-492.03098878,0.00019983,2]
[322579781,1713083438124,-341.98191633,0.00019983,2]
[322579782,1713083438134,-211.50343538,0.00019983,2]
[322579783,1713083438143,-1421.85869653,0.00019983,2]
[322579784,1713083438152,-505.82012531,0.00019983,2]
[322579785,1713083438161,-26192.84368578,0.00019984,2]
[322579786,1713083438171,-156.87147081,0.00019984,2]
[322579787,1713083438181,-277.72241335,0.00019984,2]
[322579788,1713083438190,-274.37761311,0.00019985,2]
[322579789,1713083438200,-394.9,0.0001999,2]
[322579790,1713083438209,-8514.96690019,0.00019996,2]
[322579791,1713083438219,-31753.05062004,0.00019997,2]
[322579792,1713083438229,-289.36554575,0.0002,2]
[322579793,1713083438238,-155.0,0.0002,4]
[322579794,1713083438248,-185.97334908,0.0002,2]
[322579795,1713083438257,-394.9,0.00020042,2]
[322579796,1713083438266,-203.5,0.00020057,2]
[322579797,1713083438277,-26192.84368573,0.00020067,2]
[322579798,1713083438286,-190.64,0.00020077,3]
[322579799,1713083438295,-571.97,0.00020077,3]
[322579800,1713083438305,-335.3346,0.00020077,2]
[322579801,1713083438315,-38901.06,0.00020084,2]
[322579802,1713083438324,-169.41399894,0.00020086,2]
[322579803,1713083438334,-1960.04010576,0.00020087,2]
[322579804,1713083438343,-3388.8773,0.00020089,2]
[322579805,1713083438353,-885.6709,0.00020092,2]
[322579806,1713083438362,-1000.0,0.00020092,2]
[322579807,1713083438372,-651.0994,0.00020093,2]
[322579808,1713083438381,-778.7469,0.00020093,2]
[322579809,1713083438391,-1000.0,0.00020093,2]
[322579810,1713083438400,-175.59342149,0.00020093,2]
[322579811,1713083438410,-16598.883,0.00020094,2]
[322579812,1713083438419,-213.0,0.00020094,2]
[322579813,1713083438428,-394.9,0.00020095,2]
[322579814,1713083438438,-1244.85664453,0.00020096,2]
[322579815,1713083438447,-8514.96690019,0.00020109,2]
[322579816,1713083438456,-31753.05062004,0.0002011,2]
[322579817,1713083438465,-394.9,0.00020147,2]
[322579818,1713083438474,-26192.84368573,0.00020151,2]
[322579819,1713083438483,-172.97858173,0.00020151,3]
[322579820,1713083438493,-1967.6700691,0.00020151,2]
[322579821,1713083438502,-506.2610431,0.00020168,2]
[322579822,1713083438511,-203.5,0.00020177,2]
[322579823,1713083438520,-203.5,0.00020177,2]
[322579824,1713083438531,-203.5,0.00020177,2]
[322579825,1713083438540,-173.31864646,0.00020186,2]
[322579826,1713083438550,-157.9696101,0.00020186,2]
[322579827,1713083438559,-156.02833852,0.00020186,2]
[322579828,1713083438568,-1580.41392657,0.00020186,2]
[322579829,1713083438577,-208.40954335,0.00020186,2]
[322579830,1713083438587,-359.94426278,0.00020186,2]
[322579831,1713083438598,-160.38146774,0.00020186,2]
[322579832,1713083438609,-193.82959968,0.00020186,2]
[322579833,1713083438619,-231.97630397,0.00020186,2]
[322579834,1713083438628,-155.47770022,0.00020186,2]
[322579835,1713083438638,-220.09446193,0.00020186,2]
[322579836,1713083438648,-155.65639888,0.00020186,2]
[322579837,1713083438657,-156.90327424,0.00020186,2]
[322579838,1713083438667,-308.30208582,0.00020186,2]
[322579839,1713083438676,-155.99463982,0.00020186,2]
[322579840,1713083438686,-225.08563262,0.00020186,2]
[322579841,1713083438695,-858.2769229,0.00020186,2]
[322579842,1713083438704,-1576.69856857,0.00020186,2]
[322579843,1713083438714,-202.6278862,0.00020186,2]
[322579844,1713083438723,-336.97793645,0.00020186,2]
[322579845,1713083438732,-155.35616563,0.00020186,2]
[322579846,1713083438742,-156.48676674,0.00020186,2]
[322579847,1713083438751,-233.39577978,0.00020186,2]
[322579848,1713083438761,-155.3575958,0.00020186,2]
[322579849,1713083438770,-155.52716302,0.00020186,2]
[322579850,1713083438781,-542.74996104,0.00020186,2]
[322579851,1713083438790,-156.46042662,0.00020186,2]
[322579852,1713083438799,-6209.85493494,0.00020186,2]
[322579853,1713083438809,-1603.20683321,0.00020186,2]
[322579854,1713083438818,-245.54966986,0.00020186,2]
[322579855,1713083438828,-175.74867655,0.00020187,2]
[322579856,1713083438837,-3080.27796774,0.00020187,2]
[322579857,1713083438846,-816906.0756719,0.00020187,2]
[322579858,1713083438855,-192.42850161,0.00020193,2]
[322579859,1713083438865,-251.26483966,0.00020193,2]
[322579860,1713083438874,-191.73212174,0.00020193,2]
[322579861,1713083438884,-155.0,0.00020193,2]
[322579862,1713083438893,-267.71551962,0.00020194,2]
[322579863,1713083438902,-161.79781133,0.00020194,2]
[322579864,1713083438911,-257.09136337,0.00020194,2]
[322579865,1713083438920,-217.93455068,0.00020195,2]
[322579866,1713083438929,-469.9036726,0.00020195,2]
[322579867,1713083438939,-393.2853,0.00020196,2]
[322579868,1713083438948,-6609.0967,0.00020196,2]
[322579869,1713083438957,-1047.7823,0.00020196,2]
[322579870,1713083438966,-100000.0,0.00020196,2]
[322579871,1713083438976,-8514.96690019,0.00020222,2]
[322579872,1713083438985,-31753.05062004,0.00020223,2]
[322579873,1713083438994,-26192.84368573,0.00020234,2]
[322579874,1713083439003,-11038.81062978,0.00020251,2]
[322579875,1713083439012,-52039.5561,0.00020264,2]
[322579876,1713083439022,-194.10573884,0.00020282,2]
[322579877,1713083439031,-1244.85664451,0.00020297,2]
[322579878,1713083439040,-26192.84368573,0.00020317,2]
[322579879,1713083439050,-8514.96690019,0.00020335,2]
[322579880,1713083439059,-31753.05062004,0.00020336,2]
[322579881,1713083439069,-2261.43119515,0.00020386,2]
[322579882,1713083439078,-766.52010779,0.00020386,2]
[322579883,1713083439087,-26192.84368573,0.000204,2]
[322579884,1713083439096,-180.64,0.00020427,2]
[322579885,1713083439105,-8514.96690019,0.00020448,2]
[322579886,1713083439115,-31753.05062004,0.00020448,2]
[322579887,1713083439124,-26192.84368573,0.00020484,2]
[322579888,1713083439136,-168.56491652,0.00020494,2]
[322579889,1713083439146,-297.91028271,0.00020494,2]
[322579890,1713083439156,-1967.67006908,0.00020526,2]
[322579891,1713083439165,-3196.3915059,0.00020527,2]
[322579892,1713083439174,-506.2610431,0.00020534,2]
[322579893,1713083439392,-279.823384,0.00020548,2]
[322579894,1713083439401,-8514.96690019,0.00020561,2]
[322579895,1713083439411,-31753.05062004,0.00020561,2]
[322579896,1713083439420,-26192.84368573,0.00020567,2]
[322579897,1713083439429,-11038.81062976,0.00020576,2]
[322579898,1713083439439,-3196.3915059,0.00020591,2]
[322579899,1713083439448,-1000.0,0.00020623,2]
[322579900,1713083439457,-26192.84368573,0.0002065,2]
[322579901,1713083439467,-151.97376118,0.00020668,2]
[322579902,1713083439476,-8514.96690019,0.00020674,2]
[322579903,1713083439486,-31753.05062004,0.00020674,2]
[322579904,1713083439495,-320.77342493,0.00020697,2]
[322579905,1713083439504,-155.0,0.00020722,2]
[322579906,1713083439513,-203.29628386,0.00020722,2]
[322579907,1713083439523,-26192.84368573,0.00020733,2]
[322579908,1713083439534,-8514.96690019,0.00020787,2]
[322579909,1713083439543,-31753.05062004,0.00020787,2]
[322579910,1713083439553,-1000.0,0.0002079,2]
[322579911,1713083439562,-320.77342493,0.00020799,2]
[322579912,1713083439571,-3399.37982124,0.000208,2]
[322579913,1713083439581,-783.87541441,0.000208,2]
[322579914,1713083439591,-197.17956272,0.00020804,2]
[322579915,1713083439603,-26192.84368573,0.00020817,2]
[322579916,1713083439613,-3399.37982122,0.0002085,2]
[322579917,1713083439623,-783.8754144,0.0002085,2]
[322579918,1713083439632,-21236.4874542,0.0002089,2]
[322579919,1713083439643,-341.70370158,0.00020899,2]
[322579920,1713083439653,-341.70370158,0.00020899,2]
[322579921,1713083439663,-341.70370158,0.000209,2]
[322579922,1713083439673,-341.70370158,0.000209,2]
[322579923,1713083439682,-10000.0,0.000209,2]
[322579924,1713083439692,-341.70370158,0.000209,2]
[322579925,1713083439701,-245000.0,0.000209,2]
[322579926,1713083439710,-4709491.32978151,0.000209,3]
[322579927,1713083439720,-26192.84368573,0.000209,2]
[322579928,1713083439729,-320.77342493,0.000209,2]
[322579929,1713083439738,-3399.37982122,0.000209,2]
[322579930,1713083439748,-11038.81062976,0.000209,2]
[322579931,1713083439757,-31753.05062004,0.000209,2]
[322579932,1713083439767,-506.2610431,0.000209,2]
[322579933,1713083439777,-8514.96690019,0.000209,2]
[322579934,1713083439786,-4463.07617769,0.000209,2]
[322579935,1713083439796,-4463.07617752,0.000209,2]
[322579936,1713083439805,-4463.07617752,0.000209,2]
[322579937,1713083439817,-4463.07617752,0.000209,2]
[322579938,1713083439862,-783.8754144,0.000209,2]
[322579939,1713083439872,-1967.67006908,0.000209,2]
[322579940,1713083439883,-4463.07617752,0.000209,2]
[322579941,1713083439893,-7311.0,0.00020904,2]
[322579942,1713083439903,-3624.0,0.00020904,2]
[322579943,1713083439913,-19874.0,0.00020904,2]
[322579944,1713083439925,-5320.0,0.0002099,2]
[322579945,1713083439935,-215.69452814,0.00020997,2]
[322579946,1713083439945,-690.38146521,0.00020998,2]
[322579947,1713083439955,-596.40332604,0.00020998,2]
[322579948,1713083439965,-1101.94672991,0.00020998,2]
[322579949,1713083439975,-197.99104743,0.00020998,2]
[322579950,1713083439986,-158.07811083,0.00020998,3]
[322579951,1713083439996,-155.0,0.00020998,2]
[322579952,1713083440006,-1484.38795616,0.00020998,2]
[322579953,1713083440016,-155.58493034,0.00020998,2]
[322579954,1713083440030,-946.24375437,0.00020999,2]
[322579955,1713083440041,-525.82699561,0.00020999,2]
[322579956,1713083440050,-9206887.98656738,0.00021,2]
[322579957,1713083440060,-1430.30975011,0.00021,2]
[322579958,1713083440069,-312.27,0.00021,2]
[322579959,1713083440078,-250.29,0.00021,2]
[322579960,1713083440087,-1665266.5560905,0.00021,2]
[322579961,1713083440097,-610.58536035,0.00021,2]
[322579962,1713083440106,-742459.62942459,0.00021,2]
[322579963,1713083440121,-3241679.58364458,0.00021,2]
[322579964,1713083440130,-167.11,0.00021008,2]
[322579965,1713083440140,-3196.3915059,0.00021191,2]
[322579966,1713083440150,-319.32389597,0.00021369,2]
[322579967,1713083440160,-279.823384,0.0002137,2]
[322579968,1713083440169,-400.0,0.00021373,2]
[322579969,1713083440178,-840.0,0.00021414,2]
[322579970,1713083440187,-381.28,0.00021447,3]
[322579971,1713083440196,-151.97376118,0.00021448,2]
[322579972,1713083440205,-3196.39150592,0.00021583,2]
[322579973,1713083440214,-200.0,0.00021649,2]
[322579974,1713083440224,-381.46,0.00021657,2]
[322579975,1713083440234,-595.35,0.00021727,2]
[322579976,1713083440244,-1692.0,0.000218,2]
[322579977,1713083440254,-1252.0,0.000218,2]
[322579978,1713083440264,-250.0,0.00021918,2]
[322579979,1713083440274,-152.76,0.00021918,2]
[322579980,1713083440284,-250.0,0.00021918,2]
[322579981,1713083440293,-784.24043551,0.00022,2]
[322579982,1713083440303,-347.86368462,0.00022,2]
[322579983,1713083440312,-347.86368462,0.00022,2]
[322579984,1713083440321,-347.86368462,0.00022,2]
[322579985,1713083440330,-347.86368462,0.00022,2]
[322579986,1713083440340,-347.86368462,0.00022,2]
[322579987,1713083440350,-347.86368462,0.00022,2]
[322579988,1713083440359,-347.86368462,0.00022,2]
[322579989,1713083440369,-347.86368462,0.00022,2]
[322579990,1713083440379,-347.86368462,0.00022,2]
[322579991,1713083440388,-347.86368462,0.00022,2]
[322579992,1713083440397,-347.86368462,0.00022,2]
[322579993,1713083440406,-347.86368462,0.00022,2]
[322579994,1713083440416,-347.86368462,0.00022,2]
[322579995,1713083440425,-347.86368462,0.00022,2]
[322579996,1713083440435,-347.86368462,0.00022,2]
[322579997,1713083440444,-347.86368462,0.00022,2]
[322579998,1713083440454,-347.86368462,0.00022,2]
[322579999,1713083440463,-347.86368462,0.00022,2]
[322580000,1713083440473,-347.86368462,0.00022,2]
[322580001,1713083440482,-347.86368462,0.00022,2]
[322580002,1713083440492,-347.86368462,0.00022,2]
[322580003,1713083440501,-347.86368462,0.00022,2]
[322580004,1713083440510,-347.86368462,0.00022,2]
[322580005,1713083440520,-347.86368462,0.00022,2]
[322580006,1713083440529,-347.86368462,0.00022,2]
[322580007,1713083440539,-347.86368462,0.00022,2]
[322580008,1713083440549,-347.86368462,0.00022,2]
[322580009,1713083440559,-347.86368462,0.00022,2]
[322580010,1713083440568,-347.86368462,0.00022,2]
[322580011,1713083440578,-347.86368462,0.00022,2]
[322580012,1713083440587,-347.86368462,0.00022,2]
[322580013,1713083440609,-347.86368462,0.00022,2]
[322580014,1713083440619,-347.86368462,0.00022,2]
[322580015,1713083440629,-347.86368462,0.00022,2]
[322580016,1713083440639,-347.86368462,0.00022,2]
[322580017,1713083440649,-347.86368462,0.00022,2]
[322580018,1713083440659,-347.86368462,0.00022,2]
[322580019,1713083440669,-347.86368462,0.00022,2]
[322580020,1713083440681,-347.86368462,0.00022,2]
[322580021,1713083440692,-347.86368462,0.00022,2]
[322580022,1713083440702,-347.86368462,0.00022,2]
[322580023,1713083440712,-347.86368462,0.00022,2]
[322580024,1713083440721,-347.86368462,0.00022,2]
[322580025,1713083440731,-347.86368462,0.00022,2]
[322580026,1713083440740,-347.86368462,0.00022,2]
[322580027,1713083440750,-347.86368462,0.00022,2]
[322580028,1713083440760,-347.86368462,0.00022,2]
[322580029,1713083440769,-347.86368462,0.00022,2]
[322580030,1713083440779,-347.86368462,0.00022,2]
[322580031,1713083440789,-347.86368462,0.00022,2]
[322580032,1713083440798,-347.86368462,0.00022,2]
[322580033,1713083440807,-347.86368462,0.00022,2]
[322580034,1713083440816,-347.86368462,0.00022,2]
[322580035,1713083440826,-347.86368462,0.00022,2]
[322580036,1713083440836,-347.86368462,0.00022,2]
[322580037,1713083440847,-347.86368462,0.00022,2]
[322580038,1713083440857,-347.86368462,0.00022,2]
[322580039,1713083440867,-347.86368462,0.00022,2]
[322580040,1713083440877,-347.86368462,0.00022,2]
[322580041,1713083440886,-347.86368462,0.00022,2]
[322580042,1713083440895,-347.86368462,0.00022,2]
[322580043,1713083440905,-347.86368462,0.00022,2]
[322580044,1713083440914,-347.86368462,0.00022,2]
[322580045,1713083440924,-347.86368462,0.00022,2]
[322580046,1713083440933,-347.86368462,0.00022,2]
[322580047,1713083440943,-347.86368462,0.00022,2]
[322580048,1713083440952,-347.86368462,0.00022,2]
[322580049,1713083440963,-347.86368462,0.00022,2]
[322580050,1713083440973,-347.86368462,0.00022,2]
[322580051,1713083440982,-347.86368462,0.00022,2]
[322580052,1713083440991,-347.86368462,0.00022,2]
[322580053,1713083441000,-347.86368462,0.00022,2]
[322580054,1713083441009,-347.86368462,0.00022,2]
[322580055,1713083441018,-347.86368462,0.00022,2]
[322580056,1713083441030,-347.86368462,0.00022,2]
[322580057,1713083441040,-347.86368462,0.00022,2]
[322580058,1713083441049,-347.86368462,0.00022,2]
[322580059,1713083441058,-347.86368462,0.00022,2]
[322580060,1713083441067,-347.86368462,0.00022,2]
[322580061,1713083441077,-347.86368462,0.00022,2]
[322580062,1713083441086,-347.86368462,0.00022,2]
[322580063,1713083441097,-347.86368462,0.00022,2]
[322580064,1713083441106,-347.86368462,0.00022,2]
[322580065,1713083441116,-347.86368462,0.00022,2]
[322580066,1713083441125,-279.823384,0.00022192,2]
[322580067,1713083441135,-151.97376118,0.00022229,2]
[322580068,1713083441145,-163.114,0.00022486,2]
[322580069,1713083441155,-167.11,0.00022494,2]
[322580070,1713083441164,-163.114,0.00022495,2]
[322580071,1713083441174,-163.114,0.00022504,2]
[322580072,1713083441183,-156.72,0.00022846,2]
[322580073,1713083441194,-11198.08243447,0.00023,2]
[322580074,1713083441204,-320.0,0.00023,10]
[322580075,1713083441214,-550.0,0.00023,3]
[322580076,1713083441224,-151.97376118,0.00023009,2]
[322580077,1713083441234,-279.823384,0.00023014,2]
[322580078,1713083441245,-1000.0,0.00023288,2]
[322580079,1713083441256,-1000.0,0.00023288,2]
[322580080,1713083441267,-1000.0,0.00023288,2]
[322580081,1713083441277,-1000.0,0.00023288,2]
[322580082,1713083441288,-1000.0,0.00023288,2]
[322580083,1713083441298,-1000.0,0.00023288,2]
[322580084,1713083441309,-765.0,0.00023288,2]
[322580085,1713083441319,-1000.0,0.0002329,2]
[322580086,1713083441328,-2241.23088761,0.000235,2]
[322580087,1713083441339,-400.0,0.00023748,2]
[322580088,1713083441349,-151.97376118,0.0002379,2]
[322580089,1713083441360,-840.0,0.00023794,2]
[322580090,1713083441372,-279.823384,0.00023836,2]
[322580091,1713083441383,-381.46,0.00023921,2]
[322580092,1713083441394,-167.11,0.0002398,2]
[322580093,1713083441405,-200.0,0.00024055,2]
[322580094,1713083441415,-595.35,0.00024467,2]
[322580095,1713083441426,-151.97376118,0.0002457,2]
[322580097,1713083441437,-760.91723,0.0002459,2]
[322580099,1713083441447,-760.91724,0.0002462,2]
[322580101,1713083441457,-760.91723,0.0002463,2]
[322580103,1713083441469,-760.91723,0.0002463,2]
[322580105,1713083441480,-1368.92,0.00024657,2]
[322580107,1713083441490,-1368.92,0.00024657,2]
[322580109,1713083441501,-1368.92,0.00024657,2]
[322580111,1713083441510,-1368.92,0.00024657,2]
[322580114,1713083441521,-1368.92,0.00024657,2]
[322580116,1713083441531,-1368.92,0.00024657,2]
[322580118,1713083441542,-1368.92,0.00024657,2]
[322580120,1713083441552,-1368.92,0.00024657,2]
[322580121,1713083441562,-1368.92,0.00024657,2]
[322580123,1713083441572,-1368.92,0.00024657,2]
[322580126,1713083441583,-1368.92,0.00024657,2]
[322580127,1713083441596,-1368.92,0.00024657,2]
[322580130,1713083441607,-1368.92,0.00024657,2]
[322580132,1713083441618,-1368.92,0.00024657,2]
[322580133,1713083441628,-1368.92,0.00024657,2]
[322580136,1713083441640,-1368.92,0.00024657,2]
[322580137,1713083441649,-1368.92,0.00024657,2]
[322580140,1713083441659,-1368.92,0.00024657,2]
[322580142,1713083441670,-1368.92,0.00024657,2]
[322580144,1713083441680,-1368.92,0.00024657,2]
[322580145,1713083441691,-1368.92,0.00024657,2]
[322580148,1713083441702,-1368.92,0.00024657,2]
[322580149,1713083441712,-1368.92,0.00024657,2]
[322580152,1713083441721,-1369.15825776,0.00024657,2]
[322580153,1713083441730,-279.823384,0.00024658,2]
[322580156,1713083441740,-760.91723,0.0002467,2]
[322580158,1713083441749,-500.0,0.000247,2]
[322580160,1713083441759,-760.91723,0.000247,2]
[322580162,1713083441769,-1998.95566924,0.000248,2]
[322580164,1713083441778,-155.0,0.00025,2]
[322580165,1713083441787,-9841.5070997,0.00025,4]
[322580168,1713083441796,-155.0,0.00025,2]
[322580170,1713083441806,-563.08685838,0.00025,2]
[322580172,1713083441815,-173.8791187,0.00025,2]
[322580174,1713083441825,-4539.43504486,0.00025,2]
[322580176,1713083441834,-2605.45039561,0.00025,2]
[322580178,1713083441843,-155.0,0.00025,2]
[322580179,1713083441851,-155.0,0.00025,2]
[322580181,1713083441861,-501.81720493,0.00025,2]
[322580183,1713083441871,-1376.8357808,0.00025,2]
[322580185,1713083441881,-600.0,0.00025,3]
[322580187,1713083441893,-151.97376118,0.00025351,2]
[322580189,1713083441907,-167.11,0.00025466,2]
[322580192,1713083441916,-279.823384,0.00025479,2]
[322580194,1713083441926,-1000.0,0.0002579,2]
[322580196,1713083441935,-151.97376118,0.00026132,2]
[322580198,1713083441945,-840.0,0.00026173,2]
[322580199,1713083441954,-381.46,0.00026185,2]
[322580201,1713083441963,-279.823384,0.00026301,2]
[322580204,1713083441973,-19108.17606825,0.000264,2]
[322580206,1713083441982,-200.0,0.0002646,2]
[322580208,1713083441992,-91838.10406282,0.000265,2]
[322580210,1713083442002,-1424.83,0.00026675,2]
[322580212,1713083442011,-1544.95238608,0.00026838,28]
[322580214,1713083442021,-151.97376118,0.00026912,2]
[322580216,1713083442031,-650.0,0.00027,3]
[322580218,1713083442041,-167.0,0.00027333,2]
[322580219,1713083442050,-152.05,0.00027397,2]
[322580222,1713083442060,-189.7,0.00027397,2]
[322580224,1713083442069,-155.16,0.00027397,2]
[322580225,1713083442078,-7933.2,0.00027397,15]
[322580227,1713083442088,-195.66,0.00027397,2]
[322580229,1713083442098,-10000.0,0.00027494,2]
[322580230,1713083442108,-5719.0,0.0002755,2]
[322580232,1713083442117,-1377.673,0.0002755,2]
[322580234,1713083442127,-2466.0,0.0002755,2]
[322580236,1713083442136,-151.97376118,0.00027693,2]
[322580238,1713083442145,-20189.0893382,0.00028,2]
[322580239,1713083442155,-982.14733734,0.00028,2]
[322580241,1713083442164,-167.0,0.00028235,2]
[322580243,1713083442174,-1000.0,0.0002829,2]
[322580244,1713083442182,-381.46,0.00028449,2]
[322580246,1713083442191,-151.97376118,0.00028473,2]
[322580248,1713083442200,-840.0,0.00028553,2]
[322580250,1713083442210,-253.729,0.00028585,2]
[322580252,1713083442219,-263.743,0.00028585,2]
[322580253,1713083442228,-1000.0,0.00028768,10]
[322580255,1713083442237,-200.0,0.00028768,2]
[322580257,1713083442246,-1000.0,0.000288,2]
[322580259,1713083442255,-200.0,0.00028866,2]
[322580261,1713083442263,-293.532,0.00028958,2]
[322580263,1713083442272,-411.009,0.00028958,2]
[322580265,1713083442282,-3043.0,0.00028958,2]
[322580266,1713083442290,-1472.0,0.00028958,2]
[322580268,1713083442300,-1140.0,0.00028958,2]
[322580270,1713083442309,-253.584,0.00028958,2]
[322580273,1713083442318,-2440.0,0.00028958,2]
[322580275,1713083442327,-203.751,0.00028958,2]